[Event "*** Titled Tuesday Blitz"]
[Site "Chess.com"]
[Date "2020.04.07"]
[Round "8"]
[White "imdarealist"]
[Black "stasiek18"]
[Result "0-1"]
[WhiteElo "2232"]
[BlackElo "2408"]
[TimeControl "180+1"]
[EndTime "14:29:23 PDT"]
[Termination "stasiek18 won by resignation"]

1. d4 {[%clk 0:03:00.9]} 1... Nf6 {[%clk 0:02:59.6]} 2. Bf4 {[%clk 0:03:01.3]}
2... e6 {[%clk 0:02:55.7]} 3. e3 {[%clk 0:03:01.8]} 3... c5 {[%clk 0:02:55.4]}
4. Nd2 {[%clk 0:02:57.4]} 4... d5 {[%clk 0:02:55.1]} 5. c3 {[%clk 0:02:57.4]}
5... Nc6 {[%clk 0:02:55]} 6. Bd3 {[%clk 0:02:56.1]} 6... Bd6 {[%clk 0:02:44.8]}
7. Bxd6 {[%clk 0:02:55.9]} 7... Qxd6 {[%clk 0:02:44.7]} 8. f4 {[%clk 0:02:56.8]}
8... cxd4 {[%clk 0:02:40.9]} 9. cxd4 {[%clk 0:02:57.7]} 9... Bd7 {[%clk
0:02:37.7]} 10. Ngf3 {[%clk 0:02:57.9]} 10... Nb4 {[%clk 0:02:36.9]} 11. Be2
{[%clk 0:02:41.3]} 11... Rc8 {[%clk 0:02:35.9]} 12. O-O {[%clk 0:02:24.2]} 12...
Nc2 {[%clk 0:02:35.6]} 13. Rc1 {[%clk 0:02:23.1]} 13... Nxe3 {[%clk 0:02:35.4]}
14. Rxc8+ {[%clk 0:02:24]} 14... Bxc8 {[%clk 0:02:35.2]} 15. Qa4+ {[%clk
0:02:18.4]} 15... Bd7 {[%clk 0:02:17.2]} 16. Qxa7 {[%clk 0:02:18.3]} 16... Nxf1
{[%clk 0:02:17.4]} 17. Qa8+ {[%clk 0:02:17.7]} 17... Ke7 {[%clk 0:02:17.7]} 18.
Qxh8 {[%clk 0:02:17.3]} 18... Nxd2 {[%clk 0:02:18]} 19. Nxd2 {[%clk 0:02:17.4]}
19... Qxf4 {[%clk 0:02:18.2]} 20. Nf3 {[%clk 0:02:16.5]} 20... Qe3+ {[%clk
0:02:17.8]} 21. Kf1 {[%clk 0:02:12.1]} 21... Ne4 {[%clk 0:02:12.3]} 0-1

[Event "*** Titled Tuesday Blitz"]
[Site "Chess.com"]
[Date "2020.04.07"]
[Round "8"]
[White "SGchess01"]
[Black "gmkomarov"]
[Result "1/2-1/2"]
[WhiteElo "2777"]
[BlackElo "2528"]
[TimeControl "180+1"]
[EndTime "14:29:41 PDT"]
[Termination "Game drawn by agreement"]

1. e4 {[%clk 0:02:58.6]} 1... e6 {[%clk 0:03:00]} 2. d4 {[%clk 0:02:58.6]} 2...
d5 {[%clk 0:03:00]} 3. exd5 {[%clk 0:02:59.5]} 3... exd5 {[%clk 0:02:59.5]} 4.
Nf3 {[%clk 0:03:00.4]} 4... Bd6 {[%clk 0:02:57.7]} 5. c4 {[%clk 0:03:00.3]} 5...
dxc4 {[%clk 0:02:57]} 6. Bxc4 {[%clk 0:03:01.2]} 6... Nf6 {[%clk 0:02:57.1]} 7.
O-O {[%clk 0:03:00.4]} 7... O-O {[%clk 0:02:57.1]} 8. Nc3 {[%clk 0:03:00.9]}
8... Nc6 {[%clk 0:02:54.5]} 9. h3 {[%clk 0:02:59.6]} 9... h6 {[%clk 0:02:52]}
10. a3 {[%clk 0:02:51.5]} 10... Bf5 {[%clk 0:02:50.6]} 11. Re1 {[%clk
0:02:50.8]} 11... a6 {[%clk 0:02:43.4]} 12. d5 {[%clk 0:02:44.9]} 12... Ne7
{[%clk 0:02:42.6]} 13. Nd4 {[%clk 0:02:42.3]} 13... Bh7 {[%clk 0:02:42.3]} 14.
Qf3 {[%clk 0:02:39.7]} 14... Ng6 {[%clk 0:02:40.7]} 15. Bd3 {[%clk 0:02:19.2]}
15... Ne5 {[%clk 0:02:35.5]} 16. Bxh7+ {[%clk 0:02:18.3]} 16... Nxh7 {[%clk
0:02:35.5]} 17. Qf5 {[%clk 0:02:09.9]} 17... Nf6 {[%clk 0:02:28.3]} 18. Bf4
{[%clk 0:02:08.3]} 18... Nc4 {[%clk 0:02:26.2]} 19. Bxd6 {[%clk 0:02:05.1]}
19... Nxd6 {[%clk 0:02:25.9]} 20. Qf4 {[%clk 0:02:04.7]} 20... Re8 {[%clk
0:02:23.1]} 21. Rxe8+ {[%clk 0:02:01]} 21... Qxe8 {[%clk 0:02:22.7]} 22. Rc1
{[%clk 0:02:01.4]} 22... Qd7 {[%clk 0:02:20]} 23. Nf3 {[%clk 0:01:57.4]} 23...
Re8 {[%clk 0:02:18.3]} 24. Kh2 {[%clk 0:01:51.4]} 1/2-1/2

[Event "*** Titled Tuesday Blitz"]
[Site "Chess.com"]
[Date "2020.04.07"]
[Round "8"]
[White "Kiborg95"]
[Black "champ2005"]
[Result "0-1"]
[WhiteElo "2678"]
[BlackElo "2981"]
[TimeControl "180+1"]
[EndTime "14:29:50 PDT"]
[Termination "champ2005 won by resignation"]

1. e4 {[%clk 0:03:00.9]} 1... c6 {[%clk 0:02:58.6]} 2. d4 {[%clk 0:03:00.3]}
2... d5 {[%clk 0:02:59.5]} 3. e5 {[%clk 0:03:01.1]} 3... Bf5 {[%clk 0:02:58.8]}
4. h4 {[%clk 0:03:01.6]} 4... h6 {[%clk 0:02:57.5]} 5. g4 {[%clk 0:03:01.1]}
5... Be4 {[%clk 0:02:57.2]} 6. f3 {[%clk 0:03:01]} 6... Bh7 {[%clk 0:02:57.5]}
7. e6 {[%clk 0:03:01.5]} 7... Qd6 {[%clk 0:02:57.9]} 8. exf7+ {[%clk 0:03:02.1]}
8... Kxf7 {[%clk 0:02:58.8]} 9. f4 {[%clk 0:03:02.7]} 9... Nf6 {[%clk
0:02:57.5]} 10. Nf3 {[%clk 0:03:03]} 10... Nxg4 {[%clk 0:02:57.6]} 11. h5 {[%clk
0:03:03.5]} 11... Nd7 {[%clk 0:02:52.8]} 12. Bh3 {[%clk 0:02:55.4]} 12... Ngf6
{[%clk 0:02:27]} 13. Ne5+ {[%clk 0:02:55.3]} 13... Kg8 {[%clk 0:02:26.9]} 14.
Nc3 {[%clk 0:02:54.9]} 14... e6 {[%clk 0:02:24.5]} 15. Qe2 {[%clk 0:02:48.2]}
15... Ne4 {[%clk 0:02:22.8]} 16. Nxe4 {[%clk 0:02:14.9]} 16... Bxe4 {[%clk
0:02:23.7]} 17. Rg1 {[%clk 0:02:14.7]} 17... Nxe5 {[%clk 0:02:16]} 18. fxe5
{[%clk 0:02:15.6]} 18... Qb4+ {[%clk 0:02:16]} 19. c3 {[%clk 0:02:12.7]} 19...
Qe7 {[%clk 0:02:15.6]} 20. Be3 {[%clk 0:02:04.4]} 20... Qh4+ {[%clk 0:02:13.4]}
21. Kd2 {[%clk 0:01:51.9]} 21... Qxh3 {[%clk 0:02:10.5]} 0-1

[Event "*** Titled Tuesday Blitz"]
[Site "Chess.com"]
[Date "2020.04.07"]
[Round "8"]
[White "youngKID"]
[Black "Eltaj_Safarli"]
[Result "0-1"]
[WhiteElo "2824"]
[BlackElo "3055"]
[TimeControl "180+1"]
[EndTime "14:29:59 PDT"]
[Termination "Eltaj_Safarli won by resignation"]

1. Nf3 {[%clk 0:03:00.9]} 1... Nf6 {[%clk 0:02:59.7]} 2. g3 {[%clk 0:03:00.3]}
2... g6 {[%clk 0:03:00.6]} 3. Bg2 {[%clk 0:03:00.5]} 3... Bg7 {[%clk 0:03:00.8]}
4. c4 {[%clk 0:03:01.2]} 4... O-O {[%clk 0:03:01.6]} 5. Nc3 {[%clk 0:03:01.6]}
5... c6 {[%clk 0:03:02.1]} 6. O-O {[%clk 0:02:56.4]} 6... d5 {[%clk 0:03:03]} 7.
cxd5 {[%clk 0:02:56.3]} 7... cxd5 {[%clk 0:03:02.4]} 8. d4 {[%clk 0:02:56.4]}
8... Ne4 {[%clk 0:03:01.4]} 9. Ne5 {[%clk 0:02:51.9]} 9... Bf5 {[%clk 0:02:59]}
10. Qb3 {[%clk 0:02:43.6]} 10... Nc6 {[%clk 0:02:55.2]} 11. Nxc6 {[%clk
0:02:38.7]} 11... bxc6 {[%clk 0:02:56.1]} 12. Nxe4 {[%clk 0:02:38.5]} 12... dxe4
{[%clk 0:02:51.9]} 13. Rd1 {[%clk 0:02:38.1]} 13... Rb8 {[%clk 0:02:49]} 14. Qc3
{[%clk 0:02:24.2]} 14... Qb6 {[%clk 0:02:39.4]} 15. b3 {[%clk 0:02:10.4]} 15...
c5 {[%clk 0:02:33.3]} 16. Be3 {[%clk 0:02:10.1]} 16... Qa6 {[%clk 0:02:19.8]}
17. Qxc5 {[%clk 0:02:02.1]} 17... Rfc8 {[%clk 0:02:11.1]} 18. Qxe7 {[%clk
0:02:01.2]} 18... Bf6 {[%clk 0:02:08.1]} 0-1

[Event "*** Titled Tuesday Blitz"]
[Site "Chess.com"]
[Date "2020.04.07"]
[Round "8"]
[White "reigningmvp"]
[Black "medalja"]
[Result "0-1"]
[WhiteElo "2277"]
[BlackElo "2446"]
[TimeControl "180+1"]
[EndTime "14:30:36 PDT"]
[Termination "medalja won by resignation"]

1. Nf3 {[%clk 0:03:00.9]} 1... d5 {[%clk 0:02:55.7]} 2. g3 {[%clk 0:02:59.3]}
2... c6 {[%clk 0:02:53.7]} 3. Bg2 {[%clk 0:02:57.7]} 3... Bg4 {[%clk 0:02:53.9]}
4. O-O {[%clk 0:02:55.6]} 4... Nd7 {[%clk 0:02:54]} 5. c4 {[%clk 0:02:54.9]}
5... e6 {[%clk 0:02:54.4]} 6. Nc3 {[%clk 0:02:51.3]} 6... Ngf6 {[%clk
0:02:53.1]} 7. h3 {[%clk 0:02:48.3]} 7... Bh5 {[%clk 0:02:52.9]} 8. d4 {[%clk
0:02:45]} 8... Bd6 {[%clk 0:02:52.2]} 9. b3 {[%clk 0:02:43.3]} 9... O-O {[%clk
0:02:50.7]} 10. Bb2 {[%clk 0:02:43.8]} 10... Ne4 {[%clk 0:02:50.6]} 11. Nxe4
{[%clk 0:02:41.4]} 11... dxe4 {[%clk 0:02:51.5]} 12. Ne5 {[%clk 0:02:42]} 12...
f5 {[%clk 0:02:48.4]} 13. Qd2 {[%clk 0:02:31.9]} 13... Nxe5 {[%clk 0:02:28.2]}
14. dxe5 {[%clk 0:02:30.6]} 14... Bc5 {[%clk 0:02:28.7]} 15. Qxd8 {[%clk
0:02:20.2]} 15... Raxd8 {[%clk 0:02:29.6]} 16. g4 {[%clk 0:02:20.4]} 16... fxg4
{[%clk 0:02:23.4]} 17. hxg4 {[%clk 0:02:01.1]} 17... Bxg4 {[%clk 0:02:24.3]} 18.
Rae1 {[%clk 0:02:00.9]} 18... Bb4 {[%clk 0:01:56]} 19. Rb1 {[%clk 0:01:54.6]}
19... Bxe2 {[%clk 0:01:53.9]} 20. Rfe1 {[%clk 0:01:54.9]} 20... Bxe1 {[%clk
0:01:53.3]} 21. Rxe1 {[%clk 0:01:54.5]} 21... Bf3 {[%clk 0:01:45.2]} 22. Rxe4
{[%clk 0:01:49.5]} 22... Bxe4 {[%clk 0:01:43.5]} 23. Bxe4 {[%clk 0:01:50]} 23...
Rd1+ {[%clk 0:01:43.4]} 24. Kg2 {[%clk 0:01:47.9]} 24... Rd2 {[%clk 0:01:43.5]}
25. Ba3 {[%clk 0:01:48.4]} 25... Rfxf2+ {[%clk 0:01:42.2]} 26. Kg3 {[%clk
0:01:48.8]} 26... Rxa2 {[%clk 0:01:40.3]} 27. Bd6 {[%clk 0:01:48.6]} 27... Rfb2
{[%clk 0:01:39.1]} 0-1

[Event "*** Titled Tuesday Blitz"]
[Site "Chess.com"]
[Date "2020.04.07"]
[Round "8"]
[White "Kavyev_Ruslan"]
[Black "Stormeman100100"]
[Result "1-0"]
[WhiteElo "2619"]
[BlackElo "2482"]
[TimeControl "180+1"]
[EndTime "14:30:49 PDT"]
[Termination "Kavyev_Ruslan won by resignation"]

1. e4 {[%clk 0:03:00.9]} 1... c5 {[%clk 0:02:58.9]} 2. Nf3 {[%clk 0:03:01]} 2...
e6 {[%clk 0:02:58.6]} 3. d4 {[%clk 0:03:00.2]} 3... cxd4 {[%clk 0:02:59.5]} 4.
Nxd4 {[%clk 0:03:01.1]} 4... Nc6 {[%clk 0:02:59.9]} 5. Nb5 {[%clk 0:02:57.8]}
5... d6 {[%clk 0:02:55.1]} 6. Bf4 {[%clk 0:02:57.5]} 6... e5 {[%clk 0:02:54.6]}
7. Be3 {[%clk 0:02:58.1]} 7... a6 {[%clk 0:02:53.4]} 8. N5c3 {[%clk 0:02:58]}
8... Be7 {[%clk 0:02:53.9]} 9. Nd5 {[%clk 0:02:57.7]} 9... Nf6 {[%clk
0:02:52.6]} 10. Bb6 {[%clk 0:02:57.4]} 10... Qd7 {[%clk 0:02:33.7]} 11. Nc7+
{[%clk 0:02:57.3]} 11... Kf8 {[%clk 0:02:34]} 12. Nxa8 {[%clk 0:02:58.2]} 12...
Nxe4 {[%clk 0:02:34]} 13. Bd3 {[%clk 0:02:54.6]} 13... Nf6 {[%clk 0:02:31.9]}
14. O-O {[%clk 0:02:50.9]} 14... e4 {[%clk 0:02:32.1]} 15. Be2 {[%clk
0:02:50.7]} 15... d5 {[%clk 0:02:32.3]} 16. c3 {[%clk 0:02:41.5]} 16... Bd6
{[%clk 0:02:32.4]} 17. Be3 {[%clk 0:02:38.4]} 17... h5 {[%clk 0:02:29.6]} 18.
Nb6 {[%clk 0:02:37.6]} 18... Qe6 {[%clk 0:02:29.6]} 19. Nxc8 {[%clk 0:02:36]}
19... Bxh2+ {[%clk 0:02:23.6]} 20. Kxh2 {[%clk 0:02:30.1]} 20... Ng4+ {[%clk
0:02:23.3]} 21. Kg1 {[%clk 0:02:30.4]} 21... Qe5 {[%clk 0:02:23.2]} 22. Bxg4
{[%clk 0:02:16.3]} 22... hxg4 {[%clk 0:02:22.3]} 23. Re1 {[%clk 0:02:16.9]}
23... Qh2+ {[%clk 0:02:13.1]} 24. Kf1 {[%clk 0:02:16.9]} 24... Qh1+ {[%clk
0:02:07.8]} 25. Ke2 {[%clk 0:02:17.2]} 25... Qxg2 {[%clk 0:02:08.2]} 26. Kd2
{[%clk 0:02:15.8]} 26... Ne5 {[%clk 0:02:06.5]} 27. Kc2 {[%clk 0:02:11.6]} 27...
Nd3 {[%clk 0:02:02.3]} 28. Rg1 {[%clk 0:02:11.5]} 28... Qh2 {[%clk 0:01:57.2]}
29. Nd2 {[%clk 0:02:11.3]} 29... Nxf2 {[%clk 0:01:51.5]} 30. Bxf2 {[%clk
0:02:09.9]} 30... Qxf2 {[%clk 0:01:51.1]} 31. Qxg4 {[%clk 0:02:10]} 31... Rh2
{[%clk 0:01:44.5]} 32. Qxg7+ {[%clk 0:02:09.4]} 32... Ke8 {[%clk 0:01:44.2]} 33.
Nd6+ {[%clk 0:02:07.9]} 33... Ke7 {[%clk 0:01:41.7]} 34. Qxf7+ {[%clk 0:02:08]}
34... Qxf7 {[%clk 0:01:40.7]} 35. Nxf7 {[%clk 0:02:08.9]} 35... e3 {[%clk
0:01:40.9]} 36. Rae1 {[%clk 0:02:08.8]} 36... Rxd2+ {[%clk 0:01:39.8]} 37. Kc1
{[%clk 0:02:09.3]} 37... Kxf7 {[%clk 0:01:38.5]} 38. Rxe3 {[%clk 0:02:09.4]}
38... Rf2 {[%clk 0:01:39]} 39. Ree1 {[%clk 0:02:08.9]} 39... b5 {[%clk
0:01:38.3]} 40. Rgf1 {[%clk 0:02:09.1]} 1-0

[Event "*** Titled Tuesday Blitz"]
[Site "Chess.com"]
[Date "2020.04.07"]
[Round "8"]
[White "Fy_Rakotomaharo"]
[Black "WelshTiger"]
[Result "1-0"]
[WhiteElo "2582"]
[BlackElo "2409"]
[TimeControl "180+1"]
[EndTime "14:30:50 PDT"]
[Termination "Fy_Rakotomaharo won by resignation"]

1. e4 {[%clk 0:03:00.9]} 1... c5 {[%clk 0:02:59.4]} 2. Nf3 {[%clk 0:03:00.8]}
2... Nc6 {[%clk 0:02:59.9]} 3. Nc3 {[%clk 0:03:00.4]} 3... d6 {[%clk 0:02:59.4]}
4. d4 {[%clk 0:02:59.6]} 4... cxd4 {[%clk 0:02:59.7]} 5. Nxd4 {[%clk 0:03:00.5]}
5... Nf6 {[%clk 0:03:00.2]} 6. Bg5 {[%clk 0:03:01]} 6... Bd7 {[%clk 0:03:00.5]}
7. f4 {[%clk 0:02:57.1]} 7... Qb6 {[%clk 0:02:55.5]} 8. Bxf6 {[%clk 0:02:52.9]}
8... gxf6 {[%clk 0:02:53.6]} 9. Nb3 {[%clk 0:02:30.8]} 9... Qe3+ {[%clk
0:02:45.3]} 10. Qe2 {[%clk 0:02:30.5]} 10... Qxf4 {[%clk 0:02:44.3]} 11. Nd5
{[%clk 0:02:29.3]} 11... Qg5 {[%clk 0:02:16.1]} 12. Nc7+ {[%clk 0:02:27.1]}
12... Kd8 {[%clk 0:02:15]} 13. Nxa8 {[%clk 0:02:28]} 13... Bh6 {[%clk
0:02:08.9]} 14. g3 {[%clk 0:02:12]} 14... Bg4 {[%clk 0:02:03.5]} 15. Qf2 {[%clk
0:02:10.5]} 15... Qe5 {[%clk 0:01:41.1]} 16. Bd3 {[%clk 0:02:01.5]} 16... Qxb2
{[%clk 0:01:37.1]} 17. O-O {[%clk 0:02:00.6]} 17... Kd7 {[%clk 0:01:31.4]} 18.
Nb6+ {[%clk 0:01:59.2]} 18... axb6 {[%clk 0:01:30.8]} 19. Qxb6 {[%clk
0:02:00.1]} 19... Rb8 {[%clk 0:01:20.8]} 20. Nc5+ {[%clk 0:01:58.1]} 20... dxc5
{[%clk 0:01:10.5]} 21. Qxb2 {[%clk 0:01:57.6]} 21... Be3+ {[%clk 0:01:07.5]} 22.
Kg2 {[%clk 0:01:57.2]} 1-0

[Event "*** Titled Tuesday Blitz"]
[Site "Chess.com"]
[Date "2020.04.07"]
[Round "8"]
[White "StephenDedalus83"]
[Black "DanielRensch"]
[Result "0-1"]
[WhiteElo "2738"]
[BlackElo "2571"]
[TimeControl "180+1"]
[EndTime "14:31:00 PDT"]
[Termination "DanielRensch won by resignation"]

1. e4 {[%clk 0:03:00.9]} 1... c5 {[%clk 0:02:56.8]} 2. Nf3 {[%clk 0:03:00]} 2...
d6 {[%clk 0:02:56.6]} 3. d4 {[%clk 0:03:00.6]} 3... cxd4 {[%clk 0:02:57.1]} 4.
Nxd4 {[%clk 0:03:01.4]} 4... Nf6 {[%clk 0:02:57.6]} 5. Nc3 {[%clk 0:03:01.9]}
5... g6 {[%clk 0:02:57.2]} 6. Be3 {[%clk 0:03:01.5]} 6... Bg7 {[%clk 0:02:57.5]}
7. f3 {[%clk 0:03:02]} 7... O-O {[%clk 0:02:56.4]} 8. Bc4 {[%clk 0:03:02.5]}
8... Nc6 {[%clk 0:02:56.5]} 9. Bb3 {[%clk 0:03:02.4]} 9... Bd7 {[%clk
0:02:55.6]} 10. h4 {[%clk 0:03:02.5]} 10... Na5 {[%clk 0:02:55.2]} 11. g4 {[%clk
0:02:56]} 11... Nxb3 {[%clk 0:02:47.7]} 12. axb3 {[%clk 0:02:54.5]} 12... e5
{[%clk 0:02:46.4]} 13. Nde2 {[%clk 0:02:53.9]} 13... Be6 {[%clk 0:02:45.6]} 14.
Nd5 {[%clk 0:02:38.1]} 14... Bxd5 {[%clk 0:02:36.5]} 15. exd5 {[%clk 0:02:38.1]}
15... e4 {[%clk 0:02:36.7]} 16. Ng3 {[%clk 0:02:31.6]} 16... exf3 {[%clk
0:02:36.4]} 17. Qxf3 {[%clk 0:02:31]} 17... Re8 {[%clk 0:02:32.4]} 18. Kf2
{[%clk 0:02:26.1]} 18... Rxe3 {[%clk 0:02:19.5]} 19. Kxe3 {[%clk 0:02:25.4]}
19... Qb6+ {[%clk 0:02:19.6]} 20. Kd3 {[%clk 0:02:19.6]} 20... Nd7 {[%clk
0:02:13.6]} 21. Qe3 {[%clk 0:02:19.6]} 21... Qb4 {[%clk 0:01:39.5]} 22. Ne4
{[%clk 0:02:11.8]} 22... Ne5+ {[%clk 0:01:37.8]} 23. Ke2 {[%clk 0:02:09.2]}
23... Nxg4 {[%clk 0:01:37.6]} 24. Qf4 {[%clk 0:02:04.6]} 24... Re8 {[%clk
0:01:36.2]} 25. Ra4 {[%clk 0:02:04.2]} 25... Qb5+ {[%clk 0:01:24.9]} 26. Kf3
{[%clk 0:01:44.8]} 26... f5 {[%clk 0:01:20.7]} 27. Nc3 {[%clk 0:01:42.9]} 27...
Bxc3 {[%clk 0:01:17.3]} 28. bxc3 {[%clk 0:01:40.8]} 28... Qe2+ {[%clk
0:01:16.3]} 29. Kg3 {[%clk 0:01:40.8]} 29... Re3+ {[%clk 0:01:15.1]} 0-1

[Event "*** Titled Tuesday Blitz"]
[Site "Chess.com"]
[Date "2020.04.07"]
[Round "8"]
[White "GeorgMeier"]
[Black "kuli4ik"]
[Result "1-0"]
[WhiteElo "3007"]
[BlackElo "2785"]
[TimeControl "180+1"]
[EndTime "14:31:02 PDT"]
[Termination "GeorgMeier won by resignation"]

1. Nf3 {[%clk 0:03:00.9]} 1... g6 {[%clk 0:02:33.1]} 2. g3 {[%clk 0:02:57.8]}
2... Bg7 {[%clk 0:02:33.4]} 3. d4 {[%clk 0:02:58.5]} 3... d6 {[%clk 0:02:34.2]}
4. Bg2 {[%clk 0:02:58.9]} 4... Nd7 {[%clk 0:02:35.1]} 5. O-O {[%clk 0:02:58.7]}
5... e5 {[%clk 0:02:35.8]} 6. dxe5 {[%clk 0:02:59.1]} 6... dxe5 {[%clk
0:02:35.5]} 7. a4 {[%clk 0:02:59.5]} 7... Ne7 {[%clk 0:02:34.5]} 8. Nc3 {[%clk
0:02:57.5]} 8... O-O {[%clk 0:02:34.2]} 9. Qd2 {[%clk 0:02:34.8]} 9... c6 {[%clk
0:02:26.2]} 10. Rd1 {[%clk 0:02:33]} 10... Qc7 {[%clk 0:02:26.4]} 11. Ne4 {[%clk
0:02:32.9]} 11... Nf6 {[%clk 0:02:05.4]} 12. Qd6 {[%clk 0:02:24.4]} 12... Qxd6
{[%clk 0:02:03.4]} 13. Nxd6 {[%clk 0:02:25.3]} 13... Rd8 {[%clk 0:01:51.4]} 14.
Nxe5 {[%clk 0:01:43.7]} 14... Bf5 {[%clk 0:01:22.2]} 15. Nexf7 {[%clk
0:01:29.8]} 15... Rf8 {[%clk 0:01:21.8]} 16. Nh6+ {[%clk 0:01:27.9]} 16... Bxh6
{[%clk 0:01:19.5]} 17. Bxh6 {[%clk 0:01:28.8]} 17... Bxc2 {[%clk 0:01:10.5]} 18.
Bxf8 {[%clk 0:01:23.6]} 1-0

[Event "*** Titled Tuesday Blitz"]
[Site "Chess.com"]
[Date "2020.04.07"]
[Round "8"]
[White "Frogo47"]
[Black "FeketeBarika"]
[Result "0-1"]
[WhiteElo "2481"]
[BlackElo "2301"]
[TimeControl "180+1"]
[EndTime "14:31:23 PDT"]
[Termination "FeketeBarika won on time"]

1. d4 {[%clk 0:00:02.8]} 1... e6 {[%clk 0:03:00.9]} 2. c4 {[%clk 0:00:02.4]}
2... Nf6 {[%clk 0:02:59.8]} 3. Nf3 {[%clk 0:00:03.3]} 3... d5 {[%clk 0:02:58.9]}
4. g3 {[%clk 0:00:04.2]} 4... Be7 {[%clk 0:02:59.1]} 5. Bg2 {[%clk 0:00:05.1]}
5... O-O {[%clk 0:02:59.5]} 6. Ne5 {[%clk 0:00:06]} 6... c6 {[%clk 0:02:58.7]}
7. cxd5 {[%clk 0:00:06.9]} 7... cxd5 {[%clk 0:02:58.5]} 8. Nc3 {[%clk
0:00:07.8]} 8... Nbd7 {[%clk 0:02:58.6]} 9. Bf4 {[%clk 0:00:08.7]} 9... a6
{[%clk 0:02:54]} 10. Rc1 {[%clk 0:00:09.6]} 10... b5 {[%clk 0:02:48.8]} 11. a4
{[%clk 0:00:08.7]} 11... b4 {[%clk 0:02:47.9]} 12. Na2 {[%clk 0:00:08.6]} 12...
Bb7 {[%clk 0:02:47.8]} 13. Nc6 {[%clk 0:00:08.8]} 13... Bxc6 {[%clk 0:02:47.1]}
14. Rxc6 {[%clk 0:00:09.7]} 14... a5 {[%clk 0:02:45.6]} 15. Qc2 {[%clk
0:00:09.2]} 15... Nh5 {[%clk 0:02:21.7]} 16. Bc7 {[%clk 0:00:08.1]} 16... Qe8
{[%clk 0:02:21.6]} 17. O-O {[%clk 0:00:08]} 17... Nb8 {[%clk 0:02:18.9]} 18. Rb6
{[%clk 0:00:06.1]} 18... Na6 {[%clk 0:02:16.8]} 19. Be5 {[%clk 0:00:03.8]} 19...
Rc8 {[%clk 0:02:15.9]} 20. Qd3 {[%clk 0:00:02]} 20... Qxa4 {[%clk 0:02:11.9]}
0-1

[Event "*** Titled Tuesday Blitz"]
[Site "Chess.com"]
[Date "2020.04.07"]
[Round "8"]
[White "coalescenet"]
[Black "TheCavemanChesss"]
[Result "0-1"]
[WhiteElo "2345"]
[BlackElo "2596"]
[TimeControl "180+1"]
[EndTime "14:31:27 PDT"]
[Termination "TheCavemanChesss won by resignation"]

1. d4 {[%clk 0:02:59.8]} 1... Nf6 {[%clk 0:03:00.1]} 2. c4 {[%clk 0:02:59.6]}
2... e6 {[%clk 0:03:00.7]} 3. Nf3 {[%clk 0:02:57.1]} 3... d5 {[%clk 0:03:00.1]}
4. Nc3 {[%clk 0:02:56.9]} 4... Bb4 {[%clk 0:02:59.8]} 5. e3 {[%clk 0:02:53.2]}
5... O-O {[%clk 0:02:54.8]} 6. a3 {[%clk 0:02:48]} 6... Bxc3+ {[%clk 0:02:54.5]}
7. bxc3 {[%clk 0:02:47.7]} 7... c5 {[%clk 0:02:55.4]} 8. Bd3 {[%clk 0:02:45.2]}
8... Qa5 {[%clk 0:02:53.2]} 9. Bb2 {[%clk 0:02:42.4]} 9... cxd4 {[%clk
0:02:35.2]} 10. exd4 {[%clk 0:02:38.1]} 10... dxc4 {[%clk 0:02:27.2]} 11. Bxc4
{[%clk 0:02:38.6]} 11... b6 {[%clk 0:02:22.9]} 12. O-O {[%clk 0:02:35.4]} 12...
Ba6 {[%clk 0:02:22.6]} 13. Bd3 {[%clk 0:02:27.9]} 13... Bxd3 {[%clk 0:02:18.2]}
14. Qxd3 {[%clk 0:02:28.1]} 14... Nbd7 {[%clk 0:02:18.6]} 15. a4 {[%clk
0:02:14.1]} 15... Rfc8 {[%clk 0:02:13.7]} 16. c4 {[%clk 0:02:08.6]} 16... Qb4
{[%clk 0:02:11.2]} 17. Rfb1 {[%clk 0:01:49]} 17... Qxc4 {[%clk 0:02:09.9]} 18.
Qe3 {[%clk 0:01:45.4]} 18... Nd5 {[%clk 0:02:04]} 19. Qe4 {[%clk 0:01:41.8]}
19... N7f6 {[%clk 0:02:02.6]} 20. Qh4 {[%clk 0:01:40.6]} 20... Qc2 {[%clk
0:01:55.2]} 21. Qg5 {[%clk 0:01:26.8]} 21... h6 {[%clk 0:01:54.3]} 22. Qh4
{[%clk 0:01:24.7]} 22... Ne4 {[%clk 0:01:46.2]} 23. Ne1 {[%clk 0:01:14.4]} 23...
Qe2 {[%clk 0:01:40.6]} 24. Ba3 {[%clk 0:01:07.2]} 24... g5 {[%clk 0:01:36.4]}
0-1

[Event "*** Titled Tuesday Blitz"]
[Site "Chess.com"]
[Date "2020.04.07"]
[Round "8"]
[White "Semen_Khanin"]
[Black "diskeleven"]
[Result "1-0"]
[WhiteElo "2654"]
[BlackElo "2372"]
[TimeControl "180+1"]
[EndTime "14:31:33 PDT"]
[Termination "Semen_Khanin won by resignation"]

1. e4 {[%clk 0:03:00.9]} 1... c5 {[%clk 0:02:48]} 2. Nf3 {[%clk 0:03:00.6]} 2...
e6 {[%clk 0:02:48.2]} 3. d4 {[%clk 0:03:00.6]} 3... cxd4 {[%clk 0:02:48.5]} 4.
Nxd4 {[%clk 0:03:01.5]} 4... a6 {[%clk 0:02:48.7]} 5. c4 {[%clk 0:02:59.6]} 5...
Nf6 {[%clk 0:02:47.6]} 6. Nc3 {[%clk 0:02:59.8]} 6... Qc7 {[%clk 0:02:47.8]} 7.
a3 {[%clk 0:02:59.2]} 7... d6 {[%clk 0:02:46.7]} 8. Be2 {[%clk 0:02:58.3]} 8...
Be7 {[%clk 0:02:46.8]} 9. Be3 {[%clk 0:02:58.9]} 9... O-O {[%clk 0:02:46.9]} 10.
Rc1 {[%clk 0:02:59]} 10... Nbd7 {[%clk 0:02:46.4]} 11. b4 {[%clk 0:02:59.5]}
11... b6 {[%clk 0:02:46.5]} 12. O-O {[%clk 0:03:00.1]} 12... Bb7 {[%clk
0:02:46.8]} 13. f3 {[%clk 0:02:59.9]} 13... Rfc8 {[%clk 0:02:46.9]} 14. Qd2
{[%clk 0:02:56.7]} 14... Rab8 {[%clk 0:02:46.8]} 15. Rfd1 {[%clk 0:02:55.4]}
15... Qd8 {[%clk 0:02:46.5]} 16. Nb3 {[%clk 0:02:55.4]} 16... Qe8 {[%clk
0:02:45.9]} 17. Bf4 {[%clk 0:02:53.7]} 17... Ne5 {[%clk 0:02:44.8]} 18. c5
{[%clk 0:02:53.1]} 18... bxc5 {[%clk 0:02:35.9]} 19. bxc5 {[%clk 0:02:53]} 19...
Nh5 {[%clk 0:02:11]} 20. cxd6 {[%clk 0:02:49.6]} 20... Nxf4 {[%clk 0:02:10.2]}
21. Qxf4 {[%clk 0:02:38.1]} 21... Bf6 {[%clk 0:02:09.1]} 22. Na5 {[%clk
0:02:32.6]} 22... Nd7 {[%clk 0:02:02.6]} 23. Nxb7 {[%clk 0:02:30.3]} 23... Bxc3
{[%clk 0:01:59.7]} 24. Bxa6 {[%clk 0:02:23.9]} 24... Rc6 {[%clk 0:01:50]} 25.
Bb5 {[%clk 0:02:21.1]} 25... Be5 {[%clk 0:01:45.1]} 26. Qxe5 {[%clk 0:02:12]}
26... Nxe5 {[%clk 0:01:40.3]} 27. Bxc6 {[%clk 0:02:12.2]} 27... Nxc6 {[%clk
0:01:38.2]} 28. d7 {[%clk 0:02:12.5]} 1-0